bitfinex/quotes_ETHUSD_20240618
["timestamp","ask_amount","ask_price","bid_price","bid_amount"]
[1718717766608,2.94976,3390.1,3389.5,7.43]
[1718717766840,5.89952,3390.1,3389.1,7.43]
[1718717767203,8.84928,3390.1,3389.1,7.43]
[1718717767419,11.84928,3390.1,3389.1,7.43]
[1718717768707,11.84928,3390.1,3388.2,2.07231917]
[1718717768708,2.95024,3389.6,3388.2,2.07231917]
[1718717768911,0.04436579,3389.5,3388.2,2.07231917]
[1718717769866,0.04436579,3389.5,3388.2,2.04231917]
[1718717770076,0.04436579,3389.5,3388.3,0.55]
[1718717770224,0.04436579,3389.5,3388.3,3.55]
[1718717770941,0.04436579,3389.5,3387.8,0.29971799]
[1718717770942,2.9509,3388.8,3387.8,0.29971799]
[1718717771142,2.9509,3388.8,3387.4,1.774]
[1718717771143,0.04436579,3388.7,3387.4,1.774]
[1718717771335,2.95108,3388.6,3387.4,2.0646499]
[1718717771734,2.9509,3388.8,3387.4,2.0646499]
[1718717771735,2.99554579,3388.5,3387.4,0.2906499]
[1718717772047,0.04436579,3388.5,3387.2,0.0686]
[1718717772250,2.95177,3387.8,3386.6,0.0686]
[1718717772448,0.04436579,3387.7,3386.6,0.0686]
[1718717772662,2.95203,3387.5,3385.9,2.9166]
[1718717772957,0.148,3386.4,3386.0,1.83304868]
[1718717773357,0.148,3386.4,3386.0,1.774]
[1718717773732,0.148,3386.4,3385.9,0.29565501]
[1718717773927,0.148,3386.4,3385.8,1.774]
[1718717774367,0.148,3386.4,3385.4,3.0686]
[1718717774538,0.148,3386.4,3385.4,0.0686]
[1718717775172,0.148,3386.4,3385.4,0.35618208]
[1718717775370,0.310091,3386.3,3385.5,0.0590646]
[1718717775667,0.148,3386.4,3385.5,0.0590646]
[1718717775866,2.4865,3388.2,3385.8,6.704]
[1718717776165,5.4374,3388.8,3386.3,4.885]
[1718717776369,2.804813,3388.7,3386.6,0.0686]
[1718717776664,7.43,3389.5,3387.2,4.885]
[1718717776831,5.27129,3390.0,3387.6,1.774]
[1718717777037,1.26736579,3389.9,3388.0,1.774]
[1718717777267,0.04436579,3389.9,3388.1,0.12760588]
[1718717777471,2.3214,3390.6,3388.5,1.774]
[1718717777697,0.04436579,3390.5,3388.7,1.774]
[1718717777842,0.27650579,3390.5,3388.9,1.774]
[1718717778193,2.99378579,3390.5,3389.1,1.774]
[1718717778334,2.99378579,3390.5,3389.0,0.55]
[1718717778335,0.04436579,3390.5,3389.2,2.38299578]
[1718717778535,2.94953,3390.4,3389.3,0.55]
[1718717778772,0.04436579,3390.8,3389.3,0.55]
[1718717778773,0.04436579,3390.3,3389.3,0.55]
[1718717778995,2.4245,3391.3,3389.4,0.05899654]
[1718717779142,1.24361218,3391.9,3389.6,1.774]
[1718717779143,2.94837,3391.7,3389.6,1.774]
[1718717779342,0.63402379,3391.6,3389.8,1.774]
[1718717779575,2.9489,3391.1,3389.8,1.774]
[1718717779874,2.9482,3391.9,3388.9,1.774]
[1718717779875,2.94973,3390.2,3388.9,1.774]
[1718717780060,2.94973,3390.2,3388.8,0.0686]
[1718717780061,2.3538,3390.8,3388.8,0.0686]
[1718717780265,0.27974579,3390.7,3389.0,0.05900201]
[1718717780468,0.27974579,3390.7,3388.8,0.0686]
[1718717780469,0.27974579,3390.7,3389.1,0.55]
[1718717780664,2.94951,3390.4,3389.1,0.55]
[1718717780881,2.95004,3389.8,3388.4,0.29675549]
[1718717781081,2.95021,3389.6,3388.0,0.0686]
[1718717781260,0.04436579,3389.5,3388.1,0.05901714]
[1718717781477,2.95004,3389.8,3388.1,0.05901714]
[1718717781478,0.33936979,3389.7,3388.1,0.05901714]
[1718717781776,2.95087,3388.9,3387.2,0.0686]
[1718717781979,0.04436579,3388.8,3387.2,0.61216]
[1718717782185,0.04436579,3388.8,3387.2,0.0686]
[1718717782409,0.04436579,3388.8,3386.3,3.593]
[1718717782410,0.04436579,3388.8,3386.4,0.0686]
[1718717782548,3.04436579,3388.8,3386.4,0.3643]
[1718717782886,2.95137,3388.3,3386.4,1.8426]
[1718717783178,2.95177,3387.8,3386.4,0.0686]
[1718717783374,0.63470179,3387.7,3385.7,0.0686]
[1718717783600,0.04436579,3387.7,3385.7,0.0686]
[1718717783741,3.0,3388.1,3385.7,0.0686]
[1718717783946,2.9522,3387.3,3385.7,0.0686]
[1718717785221,2.95229,3387.2,3385.7,0.0686]
[1718717785503,2.95238,3387.1,3385.7,0.0686]
[1718717785667,0.295238,3387.0,3385.2,1.774]
[1718717785863,3.247718,3387.0,3385.2,0.29786062]
[1718717786063,3.247718,3387.0,3385.0,3.628894]
[1718717786064,2.95282,3386.6,3385.0,4.2197]
[1718717786263,5.95212,3387.4,3384.2,2.4365]
[1718717786264,2.95333,3386.0,3384.2,2.4365]
[1718717786482,2.95325,3386.1,3384.3,0.05907705]
[1718717786794,2.95317,3386.2,3384.2,3.619923]
[1718717786795,2.95316,3386.2,3384.2,2.7259681]
[1718717787098,3.248647,3386.1,3384.3,5.19507002]
[1718717787408,2.95333,3386.0,3384.3,5.19507002]
[1718717787707,3.0,3386.8,3384.3,0.3619923]
[1718717787708,2.95329,3386.1,3384.3,0.3619923]
[1718717787873,2.95361,3385.7,3384.3,0.3619923]
[1718717788195,0.295329,3386.0,3384.4,0.05908403]
[1718717788394,6.06338,3387.1,3384.4,0.05908403]
[1718717788627,5.47847273,3389.2,3384.4,0.05908403]
[1718717788628,5.9528,3386.7,3384.4,0.05908403]
[1718717788761,2.95216,3387.4,3384.6,4.885]
[1718717788964,0.24668,3386.8,3384.8,1.774]
[1718717789164,5.95228,3387.3,3385.0,1.774]
[1718717789479,3.0,3387.3,3385.1,2.38306465]
[1718717789688,3.49174,3387.2,3385.3,1.774]
[1718717789985,2.95273,3386.7,3385.4,0.55]
[1718717790299,2.3944,3387.5,3385.4,0.05906652]
[1718717790500,5.34646,3387.5,3385.5,1.15890065]
[1718717790791,2.95216,3387.4,3385.6,0.05905821]
[1718717790995,2.95216,3387.4,3385.7,0.55]
[1718717791202,2.95248,3387.0,3385.7,0.55]
[1718717791385,3.645636,3387.4,3385.3,3.0]
[1718717791574,3.645636,3387.4,3384.5,4.35615763]
[1718717791575,2.3184,3386.8,3384.5,0.76315763]
[1718717791901,2.95352,3385.8,3384.4,2.3686]
[1718717792079,2.95334,3386.0,3384.4,2.3686]
[1718717792279,2.95344,3385.9,3384.4,2.3686]
[1718717792506,0.590678,3385.8,3384.5,0.05908047]
[1718717792818,2.9531,3386.3,3384.5,1.83308047]
[1718717793163,10.3829,3386.5,3384.6,2.21785405]
[1718717793164,1.038315,3386.2,3384.6,2.21785405]
[1718717793341,7.43,3387.0,3384.8,1.774]
[1718717793647,2.9523,3387.2,3385.0,1.774]
[1718717793648,4.17555,3386.9,3385.0,1.774]
[1718717793793,2.9523,3387.2,3384.6,0.44385405]
[1718717793794,2.95313,3386.3,3384.6,0.44385405]
[1718717793995,2.95313,3386.3,3384.4,2.3686]
[1718717793996,2.95314,3386.3,3384.4,2.3686]
[1718717794226,2.95361,3385.7,3384.4,2.3686]
[1718717794438,2.95387,3385.4,3383.8,3.655733]
[1718717794935,2.95387,3385.4,3383.8,5.429733]
[1718717795106,2.95344,3385.9,3383.8,5.429733]
[1718717795107,2.95377,3385.5,3383.8,4.2461]
[1718717795308,0.295377,3385.4,3383.9,0.42461]
[1718717795626,3.249237,3385.4,3383.9,0.42461]
[1718717795827,3.249237,3385.4,3383.8,2.4721]
[1718717795828,2.95402,3385.3,3383.8,2.4721]
[1718717796126,2.95406,3385.2,3383.9,0.05909805]
[1718717796328,0.295377,3385.4,3383.9,0.05909805]
[1718717796631,2.95395,3385.3,3383.8,4.49331]
[1718717796925,2.95355,3385.8,3383.9,0.05908972]
[1718717797127,1.338355,3385.7,3384.0,2.22923997]
[1718717797327,1.338355,3385.7,3384.2,1.774]
[1718717797540,1.338355,3385.7,3384.4,1.774]
[1718717797750,1.338355,3385.7,3384.5,0.84738469]
[1718717797902,1.338355,3385.7,3384.5,0.05907699]
[1718717798102,7.43,3386.4,3384.5,0.05907699]
[1718717798323,2.95334,3386.0,3384.6,0.55]
[1718717798540,2.95371,3385.6,3384.1,3.0]
[1718717798744,2.2638,3386.5,3384.0,0.45523997]
[1718717798745,2.95405,3385.2,3384.0,3.0]
[1718717799041,7.43,3386.3,3384.1,0.059091]
[1718717799206,2.9532,3386.2,3384.1,0.059091]
[1718717799412,0.29532,3386.1,3384.2,1.774]
[1718717799612,2.95292,3386.5,3384.3,0.0590746]
[1718717799854,2.9529,3386.5,3384.4,1.774]
[1718717800082,2.95308,3386.3,3384.5,2.56638209]
[1718717800371,2.95308,3386.3,3384.6,3.0]
[1718717800533,2.95308,3386.3,3384.7,0.60907465]
[1718717800719,2.95308,3386.3,3384.8,0.05907465]
[1718717800917,0.620127,3386.2,3384.9,0.55]
[1718717801220,2.95379,3385.5,3383.8,2.71931]
[1718717801461,2.95333,3386.1,3384.2,0.05908658]
[1718717801619,5.95341,3386.0,3383.9,3.0]
[1718717801823,5.95341,3386.0,3383.9,3.2957]
[1718717802256,2.95351,3385.8,3384.0,1.774]
[1718717802465,0.890692,3385.7,3384.1,0.778901]
[1718717802623,0.890692,3385.7,3384.1,3.778901]
[1718717802965,0.890692,3385.7,3384.2,0.55]
[1718717803145,0.890692,3385.7,3384.2,3.55]
[1718717803471,0.890692,3385.7,3384.2,0.55]
[1718717803625,0.890692,3385.7,3384.3,0.6102901]
[1718717803875,0.890692,3385.7,3384.4,0.55]
[1718717804821,0.890692,3385.7,3384.1,0.778901]
[1718717804822,3.844302,3385.7,3384.1,0.778901]
[1718717805123,2.95377,3385.5,3383.9,3.0]
[1718717805278,2.95403,3385.2,3383.8,2.4721]
[1718717805483,2.9543,3384.9,3383.8,2.4721]
[1718717805821,0.6112102,3385.6,3383.8,2.4721]
[1718717805822,0.590842,3384.8,3383.9,0.0590975]
[1718717806039,2.95389,3385.4,3383.8,2.4721]
[1718717806182,11.0412102,3385.6,3383.8,2.4721]
[1718717806378,1.48855022,3385.5,3383.8,2.4721]
[1718717806584,2.95395,3385.3,3383.8,2.4721]
[1718717807078,2.95395,3385.3,3383.9,0.55]
[1718717807278,3.5648902,3385.6,3383.8,2.4721]
[1718717807279,2.95411,3385.2,3383.8,2.4721]
[1718717807557,3.5648902,3385.6,3383.8,2.4721]
[1718717807558,2.95413,3385.1,3383.8,2.4721]
[1718717807692,0.65648902,3385.5,3383.8,2.4721]
[1718717807693,2.95441,3384.8,3383.8,2.4721]
[1718717808007,0.295441,3384.7,3383.8,2.4721]
[1718717808195,3.249921,3384.7,3383.2,7.1907]
[1718717808801,0.295441,3384.7,3383.2,7.1907]
[1718717809007,0.295441,3384.7,3383.3,0.05910094]
[1718717809222,2.95413,3385.1,3383.3,0.05910094]
[1718717809422,8.08648902,3385.5,3383.3,0.05910094]
[1718717809423,2.95403,3385.2,3383.3,0.05910094]
[1718717809658,2.95416,3385.1,3383.3,0.05910094]
[1718717809943,0.590819,3385.0,3383.4,0.75455009]
[1718717810153,0.590819,3385.0,3383.5,0.05909816]
[1718717810317,0.590819,3385.0,3383.6,0.55]
[1718717810518,0.590819,3385.0,3383.7,0.05909819]
[1718717810743,0.6499009,3384.9,3383.8,0.05909819]
[1718717811041,3.0,3385.4,3383.9,0.55]
[1718717811194,2.95404,3385.2,3383.7,3.0]
[1718717811392,0.595404,3385.1,3383.8,0.05909671]
[1718717811602,2.95441,3384.8,3383.4,0.75455009]
[1718717811924,2.2678,3385.9,3383.5,0.05910105]
[1718717812099,2.95351,3385.8,3383.8,1.774]
[1718717812296,2.95334,3386.0,3384.0,1.774]
[1718717812616,3.0,3385.9,3384.1,0.05908408]
[1718717812820,10.38324,3386.2,3384.1,0.05908408]
[1718717813125,2.95334,3386.0,3384.2,1.02900841]
[1718717813343,1.038324,3386.1,3384.4,2.392]
[1718717813658,2.3879,3386.5,3384.5,0.60907922]
[1718717813938,5.21228156,3388.5,3384.5,2.324]
[1718717813939,0.05,3386.4,3384.5,2.324]
[1718717814140,7.43,3387.2,3385.0,2.95413]
[1718717814438,0.05,3387.1,3385.1,2.91485]
[1718717814595,0.05,3387.1,3385.2,4.83306668]
[1718717814796,0.05,3387.1,3385.4,4.144]
[1718717815001,0.05,3387.1,3385.5,3.55]
[1718717815235,0.05,3387.1,3385.6,0.7694]
[1718717815434,3.00238,3387.1,3385.7,0.55]
[1718717815616,0.05,3387.1,3385.7,0.55]
[1718717816027,0.05,3387.1,3385.8,0.05906043]
[1718717816254,10.38169,3387.9,3385.9,0.55]
[1718717816255,2.95213,3387.4,3385.9,0.55]
[1718717816416,2.95279,3386.7,3385.7,3.0]
[1718717816720,2.95279,3386.7,3384.6,0.2957]
[1718717816721,2.95347,3385.9,3384.5,2.2641]
[1718717816903,3.00351,3385.8,3384.5,2.5630111]
[1718717817132,2.95347,3385.9,3384.5,2.2641]
[1718717817133,3.00367,3385.7,3384.5,2.2641]
[1718717817335,2.95372,3385.6,3384.5,2.2641]
[1718717817638,3.00367,3385.7,3383.8,0.2957]
[1718717817639,2.95399,3385.3,3383.8,0.2957]
[1718717817857,0.05,3385.2,3383.9,0.43584]
[1718717818313,0.05,3385.4,3384.0,0.05908985]
[1718717818517,7.43,3386.8,3384.9,2.4017]
[1718717818822,2.95282,3386.6,3385.0,2.40304]
[1718717819018,2.95282,3386.6,3384.9,2.4017]
[1718717819019,0.05,3386.5,3384.9,2.4017]
[1718717819231,0.05,3386.5,3385.0,0.05907257]
[1718717819430,0.05,3386.5,3385.1,0.42347726]
[1718717819431,0.424573,3386.5,3385.1,0.42347726]
[1718717819631,0.05,3386.5,3385.1,0.42347726]
[1718717820029,0.05,3386.8,3385.2,0.60907123]
[1718717820328,0.05,3386.9,3385.4,2.4731]
[1718717820538,2.95254,3387.0,3385.5,0.55]
[1718717820707,2.95291,3386.5,3385.4,2.4731]
[1718717820911,3.00306,3386.4,3385.4,2.4731]
[1718717821109,2.95342,3385.9,3384.4,7.43]
[1718717821320,0.05,3385.8,3384.5,0.05908155]
[1718717821521,2.95308,3386.3,3384.5,0.05908155]
[1718717821702,7.43,3386.6,3384.7,1.774]
[1718717821906,0.6085444,3386.7,3385.1,1.774]
[1718717822206,7.43,3387.3,3385.1,1.774]
[1718717822207,0.05,3386.9,3385.4,1.774]
[1718717822427,0.05,3387.2,3385.4,1.774]
[1718717822648,2.95299,3386.4,3385.4,3.0]
[1718717822951,2.95272,3386.8,3384.0,0.779424]
[1718717822952,2.95325,3386.1,3384.9,3.0]
[1718717823156,0.350325,3386.0,3384.7,2.4168]
[1718717823319,0.05,3386.0,3384.8,0.05907631]
[1718717823521,0.05,3386.0,3384.9,0.0590763]
[1718717823715,2.9535,3385.9,3384.7,2.4168]
[1718717823920,0.05,3385.8,3384.7,2.4168]
[1718717824138,2.95369,3385.6,3384.7,2.4168]
[1718717824350,0.300316,3386.0,3384.7,2.4168]
[1718717824351,0.05,3385.5,3384.7,2.4168]
[1718717824550,2.95378,3385.5,3384.7,2.4168]
[1718717824738,3.00346,3385.9,3384.7,2.4168]
[1718717824739,0.05,3385.4,3384.7,2.4168]
[1718717825064,2.95395,3385.3,3384.1,3.0]
[1718717825366,0.05,3385.2,3384.2,1.2983424]
[1718717825553,0.05,3385.2,3384.1,3.0]
[1718717826060,2.95421,3385.0,3384.1,3.0]
[1718717826289,0.05,3384.9,3384.0,2.4065]
[1718717826471,0.05,3384.9,3384.1,0.05909329]
[1718717826624,0.05,3385.2,3384.1,0.05909329]
[1718717826825,10.38365,3385.7,3384.1,0.05908892]
[1718717827053,0.05,3385.5,3384.2,0.27062389]
[1718717827265,3.0,3386.4,3384.3,1.83307912]
[1718717827440,2.95316,3386.2,3384.3,1.83307912]
[1718717827646,3.01266522,3386.1,3384.4,0.26944948]
[1718717827832,3.81832502,3386.1,3384.4,0.26944948]
[1718717828039,3.81832502,3386.1,3384.5,0.55]
[1718717828372,3.81832502,3386.1,3384.6,0.05907918]
[1718717828373,0.86507502,3386.1,3384.6,0.05907918]
[1718717828527,0.3818325,3386.0,3384.8,2.3659]
[1718717828729,0.3818325,3386.0,3384.9,0.05907392]
[1718717828730,0.05,3386.0,3384.9,0.05907392]
[1718717829035,2.95299,3386.4,3385.0,0.55]
[1718717829227,0.502299,3386.3,3385.0,0.55]
[1718717829430,3.455379,3386.3,3385.1,0.05907395]
[1718717829680,2.14730099,3386.2,3385.1,0.05907395]
[1718717829829,0.05,3386.1,3385.1,0.05907395]
[1718717830047,2.95275,3386.7,3385.2,0.55]
[1718717830048,2.95273,3386.7,3385.2,0.55]
[1718717830403,3.53094305,3386.6,3384.9,3.0]
[1718717830672,3.53094305,3386.6,3384.8,2.3659]
[1718717830673,2.95335,3386.0,3384.8,2.3659]
[1718717830847,2.19721851,3385.9,3384.8,2.3659]
[1718717831055,2.95361,3385.7,3384.8,2.3659]
[1718717831272,0.05,3385.6,3384.8,2.3659]
[1718717831471,5.10143507,3385.5,3384.1,2.5874]
[1718717831673,2.95405,3385.2,3384.1,2.5874]
[1718717831970,2.1980152,3385.1,3384.1,2.5874]
[1718717832175,0.05,3385.1,3384.1,2.5874]
[1718717832672,2.14806581,3385.0,3384.1,2.5874]
[1718717832859,0.48514351,3385.4,3384.2,0.05909398]
[1718717833061,2.14802204,3385.3,3384.2,0.31783398]
[1718717833275,8.34738468,3386.1,3384.2,2.09483398]
[1718717833474,2.95349,3385.9,3384.2,2.03574]
[1718717833664,2.95349,3385.9,3384.4,1.777]
[1718717833665,2.19765836,3385.8,3384.4,1.777]
[1718717833866,0.83473847,3386.0,3384.5,0.05907862]
[1718717833867,2.19765836,3385.7,3384.5,0.05907862]
[1718717834039,0.83473847,3386.0,3384.6,0.77983926]
[1718717834240,0.88473847,3386.0,3384.6,2.55683926]
[1718717834572,0.88473847,3386.0,3384.7,3.31475846]
[1718717834573,2.14747996,3385.9,3384.7,3.31475846]
[1718717834775,0.05,3385.8,3384.8,0.55]
[1718717835076,8.76372454,3386.6,3384.9,4.456]
[1718717835274,8.76372454,3386.6,3385.0,4.08207606]
[1718717835275,3.81201706,3386.5,3385.0,4.08207606]
[1718717835475,2.14720917,3386.4,3385.1,0.05906994]
[1718717835652,0.05,3386.3,3385.2,0.55]
[1718717835855,0.05,3386.3,3385.3,0.05906806]
[1718717836069,0.05,3386.3,3385.3,0.65088247]
[1718717836452,0.05,3386.3,3385.3,0.59181441]
[1718717836699,0.05,3386.2,3385.0,3.0]
[1718717836855,0.05,3386.2,3385.1,0.60907159]
[1718717837056,2.9529,3386.5,3385.2,0.62880716]
[1718717837266,2.95333,3386.1,3385.0,3.0]
[1718717837470,2.9529,3386.5,3385.1,0.05907757]
[1718717837471,0.05,3386.0,3385.1,0.05907757]
[1718717837657,0.05,3386.4,3385.1,0.05907757]
[1718717837857,2.14723212,3386.3,3385.2,0.57380776]
[1718717838081,0.05,3386.2,3385.0,3.0]
[1718717838291,0.05,3386.2,3385.1,0.55]
[1718717838465,0.05,3386.2,3385.2,0.05907234]
[1718717838867,0.05,3386.2,3385.0,3.0]
[1718717839056,3.92036468,3386.5,3385.0,3.0]
[1718717839257,3.06466649,3386.4,3385.0,3.77116839]
[1718717839447,0.05,3386.3,3385.0,3.77116839]
[1718717840192,0.96738468,3386.3,3385.0,3.77116839]
[1718717840403,0.05,3386.2,3385.1,1.19501684]
[1718717840614,0.05,3386.2,3385.1,0.64501684]
[1718717840757,0.05,3386.2,3385.2,0.05907414]
[1718717840958,0.05,3386.3,3385.3,0.9204091]
[1718717841258,0.05,3386.3,3385.4,0.05906839]
[1718717842072,4.21064859,3386.8,3385.5,0.55]
[1718717842073,0.96738468,3386.7,3385.5,0.55]
[1718717842392,0.05,3386.7,3385.7,2.5863]
[1718717842597,0.05,3386.9,3385.8,3.05906229]
[1718717842795,0.26780333,3386.9,3385.8,3.88936329]
[1718717843007,0.05,3386.9,3385.8,3.88936329]
[1718717843586,0.91738468,3387.2,3385.8,3.88936329]
[1718717843587,0.05,3387.1,3385.8,3.88936329]
[1718717843823,0.96738468,3387.2,3385.9,3.1853311]
[1718717844119,3.0,3387.4,3386.0,4.83605204]
[1718717844314,1.21064859,3387.7,3386.1,1.47443831]
[1718717844315,0.91738468,3387.7,3386.1,1.47443831]
[1718717844455,0.05,3387.6,3386.2,0.05904966]
[1718717844654,0.05,3387.6,3386.3,1.24009822]
[1718717844907,0.05,3387.7,3386.5,1.777]
[1718717845092,0.05,3388.0,3386.6,1.47518622]
[1718717845292,0.05,3388.0,3386.7,1.777]
[1718717845469,0.05,3388.0,3386.8,2.38603699]
[1718717845671,0.05,3388.4,3386.9,0.62521819]
[1718717845990,0.05,3388.4,3387.0,0.60903691]
[1718717846202,0.05,3388.4,3387.1,0.60112551]
[1718717846407,2.9515,3388.1,3386.9,3.0]
[1718717846568,0.05,3388.0,3386.6,0.86614488]
[1718717846778,0.05,3388.0,3386.5,3.0]
[1718717847082,0.05,3388.0,3386.6,0.05904731]
[1718717847285,2.95168,3387.9,3386.5,3.0]
[1718717847488,0.05,3387.8,3386.5,3.57034]
[1718717847688,2.95152,3388.1,3386.5,3.57034]
[1718717847689,0.05,3387.7,3386.5,3.0]
[1718717848021,3.00186,3387.7,3386.5,3.0]
[1718717848409,3.00186,3387.7,3386.4,2.7034]
[1718717848410,2.95203,3387.5,3386.4,2.7034]
[1718717848569,0.05,3387.4,3386.4,2.7034]
[1718717849201,0.05,3387.7,3386.5,0.05905557]
[1718717849402,0.05,3387.7,3386.4,2.7034]
[1718717849593,0.05,3387.7,3386.5,0.05904788]
[1718717849790,0.05,3387.7,3386.6,0.30517122]
[1718717849969,2.95142,3388.2,3386.7,0.05904793]
[1718717850170,3.05,3388.1,3386.7,0.05904793]
[1718717850577,0.05,3388.1,3386.7,0.05904793]
[1718717851102,0.91738468,3388.4,3386.8,2.327]
[1718717851312,0.91738468,3388.4,3387.0,4.5595]
[1718717851477,0.91738468,3388.4,3387.1,0.55]
[1718717851675,0.91738468,3388.4,3387.1,3.55]
[1718717851905,0.91738468,3388.4,3387.1,5.327]
[1718717852203,0.91738468,3388.4,3387.2,0.05902997]
[1718717852504,0.91738468,3388.4,3387.3,1.366853]
[1718717852712,7.43,3388.8,3387.4,0.05903004]
[1718717853009,0.05,3388.7,3387.5,0.55]
[1718717853207,3.00054,3389.2,3387.6,0.3202883]
[1718717853407,3.00054,3389.2,3387.7,0.60902674]
[1718717853983,3.00054,3389.2,3387.7,0.55]
[1718717854188,2.7613,3389.0,3387.6,0.3202883]
[1718717854400,0.05,3388.9,3387.3,0.816853]
[1718717854575,0.05,3388.9,3387.4,0.60902985]
[1718717854908,3.00081,3388.9,3387.4,0.60902985]
[1718717855096,0.595145,3388.8,3387.5,0.62028829]
[1718717855286,0.05,3388.7,3387.5,0.62028829]
[1718717855491,0.05,3388.7,3387.6,2.38602597]
[1718717855703,0.05,3389.3,3387.6,5.38602597]
[1718717856022,0.05,3389.2,3387.7,0.05902089]
[1718717856228,3.30557,3389.2,3387.1,0.29227677]
[1718717856379,2.95073,3389.0,3387.1,0.29227677]
[1718717856580,0.05,3388.9,3386.8,6.593]
[1718717856778,0.05,3388.9,3386.9,5.8322703]
[1718717856993,3.05,3389.5,3387.2,1.777]
[1718717857191,6.00035,3389.5,3387.4,1.777]
[1718717857400,0.600035,3389.4,3387.6,4.5977]
[1718717857728,0.05,3389.3,3387.7,3.05902249]
[1718717858026,0.05,3389.3,3387.8,0.6090225]
[1718717858225,0.7100385,3389.3,3387.9,0.8265745]
[1718717858386,0.7100385,3389.3,3388.0,0.55]
[1718717858894,3.6604985,3389.3,3387.7,3.0]
[1718717859093,2.9508,3389.0,3387.7,3.0]
[1718717859413,3.00088,3388.9,3387.7,3.0]
[1718717859616,2.95089,3388.8,3387.7,3.0]
[1718717859914,2.95113,3388.6,3387.7,3.0]
[1718717860117,0.05,3388.5,3387.6,2.8207]
[1718717860323,0.645218,3388.5,3387.6,2.8207]
[1718717860907,2.95126,3388.4,3387.2,3.0]
[1718717861112,0.05,3388.3,3387.2,3.0]
[1718717861285,2.9515,3388.1,3387.2,3.0]
[1718717861487,0.05,3388.0,3387.0,3.0]
[1718717861692,0.05,3388.0,3386.8,0.29436783]
[1718717861891,0.05,3388.0,3386.5,1.777]
[1718717862197,0.645285,3388.0,3386.7,0.4777]
[1718717862630,0.05,3388.0,3386.7,3.3257]
[1718717862920,2.95124,3388.5,3386.8,3.55]
[1718717863121,3.00125,3388.4,3386.8,3.55]
[1718717863324,0.595232,3388.3,3386.9,0.86527]
[1718717863511,3.0,3388.7,3387.0,0.55]
[1718717863512,2.951,3388.7,3387.0,0.55]
[1718717864025,2.95099,3388.7,3387.1,2.779137]
[1718717864328,2.95099,3388.7,3387.2,6.398]
[1718717864832,3.91163485,3389.2,3387.2,8.175]
[1718717865001,2.7695,3389.4,3387.3,2.68881]
[1718717865192,2.95049,3389.3,3387.4,3.55]
[1718717865387,0.867032,3389.2,3387.5,1.263681]
[1718717865591,0.867032,3389.2,3387.6,0.55]
[1718717866011,0.867032,3389.2,3387.7,1.777]
[1718717866218,0.867032,3389.2,3387.8,0.55]
[1718717866434,2.95035,3389.5,3387.9,0.63742361]
[1718717866603,2.95035,3389.5,3388.0,0.55]
[1718717866806,2.95035,3389.5,3388.1,2.6009]
[1718717867043,2.95052,3389.3,3388.1,2.6009]
[1718717867534,2.95038,3389.4,3388.1,2.6009]
[1718717867912,6.245222,3389.6,3387.8,3.0]
[1718717867913,2.95056,3389.2,3387.8,3.0]
[1718717868095,2.95079,3389.0,3387.8,3.0]
[1718717868296,0.295056,3389.1,3387.3,3.69061]
[1718717868297,0.295056,3389.1,3387.4,3.0]
[1718717868536,2.95074,3389.0,3387.4,3.0]
[1718717868695,2.95082,3388.9,3387.4,3.0]
[1718717868890,2.95098,3388.7,3387.4,3.0]
[1718717870155,2.95116,3388.5,3387.4,3.0]
[1718717870294,2.95104,3388.7,3387.4,3.0]
[1718717870295,2.95099,3388.7,3387.4,3.0]
[1718717870493,0.590194,3388.6,3387.4,3.69871278]
[1718717870744,2.95099,3388.7,3387.4,3.69871278]
[1718717871507,2.95073,3389.0,3387.4,3.69871278]
[1718717871841,3.506986,3388.9,3387.5,0.73643558]
[1718717872007,2.95083,3388.9,3387.5,0.73643558]
[1718717872331,2.95001,3389.9,3388.2,2.848]
[1718717872528,4.46402438,3390.3,3388.3,3.55]
[1718717872529,2.94985,3390.0,3388.3,3.55]
[1718717872832,2.94995,3389.9,3388.3,3.8348]
[1718717873031,2.95018,3389.7,3388.4,0.66828]
[1718717873238,3.245035,3389.8,3388.4,0.66828]
[1718717873444,0.294995,3389.8,3388.4,0.66828]
[1718717873605,0.3244945,3389.7,3388.5,0.680108]
[1718717874319,2.94977,3390.1,3388.6,2.86971721]
[1718717874320,2.94978,3390.1,3388.6,2.86971721]
[1718717874699,2.94978,3390.1,3388.7,3.0]
[1718717875023,5.94944,3390.5,3388.8,0.05901517]
[1718717875024,2.94959,3390.3,3388.8,0.05901517]
[1718717875236,6.839581,3390.2,3388.8,0.71399749]
[1718717875440,6.839581,3390.2,3388.7,3.0]
[1718717875441,2.94987,3390.0,3388.7,3.0]
[1718717876505,2.94995,3389.9,3388.7,3.0]
[1718717876708,3.889901,3390.2,3388.2,4.91913025]
[1718717876709,3.540082,3389.8,3388.2,2.848]
[1718717876915,7.004901,3390.2,3388.1,2.6934]
[1718717876916,2.95022,3389.6,3388.1,2.6934]
[1718717877125,2.95055,3389.2,3388.1,2.6934]
[1718717877424,2.95015,3389.7,3388.1,2.6934]
[1718717877641,5.95028,3389.6,3388.1,2.6934]
[1718717877802,3.0,3389.6,3388.1,2.6934]
[1718717878005,5.95023,3389.6,3388.1,2.6934]
[1718717878272,2.9503,3389.5,3388.1,2.6934]
[1718717878399,0.890053,3389.4,3388.1,2.96274]